bitfinex/quotes_ETHUSD_20240828
["timestamp","ask_amount","ask_price","bid_price","bid_amount"]
[1724850311558,3.9529,2529.8,2529.5,2.4823]
[1724850311877,3.95306,2529.7,2529.5,2.4823]
[1724850312186,3.95319,2529.6,2529.5,2.4823]
[1724850312377,7.90638,2529.6,2529.5,2.4823]
[1724850312800,3.95381,2529.3,2529.2,2.3097]
[1724850313104,3.95353,2529.4,2529.2,2.3097]
[1724850314293,3.95366,2529.3,2529.2,2.3097]
[1724850314493,7.90732,2529.3,2529.2,2.3097]
[1724850315390,3.95229,2530.2,2529.1,2.3952]
[1724850315596,3.95229,2530.2,2529.3,2.3952]
[1724850315597,3.95304,2529.7,2529.3,2.3952]
[1724850316268,7.90616,2529.7,2529.3,2.3952]
[1724850316475,3.95331,2529.6,2529.3,2.3952]
[1724850316704,3.95337,2529.5,2529.3,2.3952]
[1724850317584,3.95314,2529.7,2529.3,2.3952]
[1724850317906,7.90626,2529.7,2529.3,2.3952]
[1724850318073,3.0,2530.0,2529.3,2.3952]
[1724850318074,3.95282,2529.9,2529.3,4.588546]
[1724850318269,3.95282,2529.9,2529.4,2.51426454]
[1724850318270,6.95282,2529.9,2529.4,2.51426454]
[1724850318506,3.95249,2530.1,2529.5,2.4352]
[1724850318806,3.95249,2530.1,2529.6,2.4352]
[1724850318976,3.95273,2529.9,2529.6,2.4352]
[1724850320206,7.90559,2529.9,2529.6,2.4352]
[1724850320372,3.95303,2529.7,2529.6,2.4352]
[1724850320573,7.90606,2529.7,2529.6,2.4352]
[1724850320972,7.90606,2529.7,2529.6,0.05213619]
[1724850321189,10.90606,2529.7,2529.6,0.05213619]
[1724850321474,7.907,2529.4,2529.3,2.4477]
[1724850321674,10.907,2529.4,2529.3,2.49953494]
[1724850322969,10.907,2529.4,2529.3,0.05183494]
[1724850323275,3.95397,2529.1,2529.0,2.2888]
[1724850323470,3.95397,2529.1,2529.0,2.34076329]
[1724850323719,7.90794,2529.1,2529.0,2.34076329]
[1724850324584,3.95397,2529.1,2529.0,2.34076329]
[1724850325117,3.95382,2529.2,2529.0,2.34076329]
[1724850326620,3.95397,2529.1,2529.0,2.34076329]
[1724850327142,7.90794,2529.1,2529.0,0.05196329]
[1724850327349,3.95436,2528.9,2528.7,14.15830317]
[1724850327525,7.90888,2528.8,2528.7,2.4341]
[1724850328405,3.95481,2528.6,2528.4,2.3232]
[1724850329930,7.90967,2528.6,2528.4,2.3232]
[1724850330407,3.95481,2528.6,2528.4,2.3232]
[1724850330812,7.90968,2528.6,2528.4,2.3232]
[1724850331224,3.95491,2528.5,2528.4,2.3232]
[1724850331410,3.95481,2528.6,2528.4,2.3232]
[1724850332028,7.90968,2528.6,2528.4,2.3232]
[1724850332264,0.790968,2528.6,2528.4,2.3232]
[1724850332521,3.95491,2528.5,2528.4,2.3232]
[1724850332961,6.95457,2528.8,2528.4,2.3232]
[1724850333098,3.95407,2529.1,2528.5,11.72420317]
[1724850333299,3.95424,2529.0,2528.6,2.4405]
[1724850333522,3.95407,2529.1,2528.6,2.4405]
[1724850333523,3.95431,2528.9,2528.6,2.4405]
[1724850334346,3.9546,2528.7,2528.6,2.4405]
[1724850336104,7.9092,2528.7,2528.6,2.6244592]
[1724850336540,7.9092,2528.7,2528.6,0.1839592]
[1724850336835,3.95507,2528.4,2528.3,2.4858]
[1724850337405,7.91076,2528.2,2528.1,14.21000317]
[1724850337624,7.91076,2528.2,2528.1,2.4858]
[1724850337843,3.95569,2528.0,2527.9,11.72420317]
[1724850338252,7.9117,2527.9,2527.8,2.2815]
[1724850342115,7.912,2527.8,2527.7,0.1239565]
[1724850342609,10.912,2527.8,2527.7,0.1239565]
[1724850343012,3.956,2527.8,2527.7,0.1239565]
[1724850343218,0.9343,2528.5,2527.7,2.5397565]
[1724850343219,3.95566,2528.1,2527.7,2.5397565]
[1724850343442,3.95586,2527.9,2527.7,2.72600431]
[1724850343956,7.912,2527.8,2527.7,2.72600431]
[1724850344717,7.912,2527.8,2527.7,0.31020431]
[1724850345261,11.462,2527.8,2527.7,0.31020431]
[1724850345563,15.418,2527.8,2527.7,0.31020431]
[1724850346667,10.912,2527.8,2527.7,2.75150431]
[1724850347238,12.0032,2527.8,2527.7,0.31020431]
[1724850347454,12.5532,2527.8,2527.7,0.31020431]
[1724850347648,3.956,2527.8,2527.7,0.31020431]
[1724850347852,4.36879924,2528.2,2527.8,2.3523]
[1724850348067,3.9558,2528.0,2527.8,2.3523]
[1724850348246,3.95585,2527.9,2527.8,2.3523]
[1724850348607,3.95554,2528.1,2527.8,2.3523]
[1724850348733,3.95585,2527.9,2527.8,2.3523]
[1724850349154,7.9117,2527.9,2527.8,2.3523]
[1724850350659,3.95585,2527.9,2527.8,2.3523]
[1724850351039,3.95585,2527.9,2527.8,2.5323385]
[1724850351343,3.95562,2528.1,2527.8,0.1800385]
[1724850351546,3.95562,2528.1,2527.9,2.4917]
[1724850351547,6.95572,2528.0,2527.9,2.4917]
[1724850351870,7.9113,2528.1,2527.9,2.67170405]
[1724850352168,3.95562,2528.1,2527.9,2.67170405]
[1724850352467,3.95569,2528.0,2527.9,2.67170405]
[1724850352653,7.91138,2528.0,2527.9,0.18000405]
[1724850352968,3.956,2527.8,2527.7,0.1239565]
[1724850353278,3.956,2527.8,2527.7,2.4998565]
[1724850353475,3.95587,2527.9,2527.7,2.4998565]
[1724850353635,3.956,2527.8,2527.7,2.4998565]
[1724850354155,7.912,2527.8,2527.7,2.4998565]
[1724850354341,8.34750496,2527.8,2527.7,2.4998565]
[1724850354732,8.34750496,2527.8,2527.7,0.1239565]
[1724850354932,12.30350496,2527.8,2527.7,0.1239565]
[1724850355173,15.85350496,2527.8,2527.7,0.1239565]
[1724850356152,11.34750496,2527.8,2527.7,0.1239565]
[1724850356481,10.912,2527.8,2527.7,0.1239565]
[1724850357171,14.868,2527.8,2527.7,0.1239565]
[1724850357383,15.418,2527.8,2527.7,0.1239565]
[1724850357873,11.462,2527.8,2527.7,0.1239565]
[1724850358186,12.453787,2527.8,2527.7,0.1239565]
[1724850358338,10.912,2527.8,2527.7,0.1239565]
[1724850358543,10.912,2527.8,2527.7,0.29818216]
[1724850358763,10.912,2527.8,2527.7,0.1239565]
[1724850358977,10.912,2527.8,2527.7,0.29818216]
[1724850359276,3.956,2527.8,2527.7,2.3886565]
[1724850359452,3.956,2527.8,2527.7,2.56288216]
[1724850359652,6.95525,2528.3,2527.7,2.56288216]
[1724850359653,3.0,2528.3,2527.7,2.56288216]
[1724850359858,0.695525,2528.3,2527.8,2.304]
[1724850360149,0.695525,2528.3,2527.7,0.29818216]
[1724850360150,3.95567,2528.1,2528.0,2.304]
[1724850360337,3.95567,2528.1,2528.0,2.47805962]
[1724850360548,3.9553,2528.3,2528.0,2.47805962]
[1724850360744,3.95501,2528.5,2528.1,2.304]
[1724850360745,3.95499,2528.5,2528.1,2.304]
[1724850361085,3.95522,2528.3,2528.2,0.1739997]
[1724850361575,7.91044,2528.3,2528.2,0.1739997]
[1724850362053,7.91138,2528.0,2527.9,2.304]
[1724850362256,3.0,2528.3,2527.7,2.4279565]
[1724850362257,3.956,2527.8,2527.7,2.4279565]
[1724850363290,3.95581,2528.0,2527.7,2.4279565]
[1724850363447,0.3,2528.2,2527.7,2.4279565]
[1724850363448,3.956,2527.8,2527.7,2.4279565]
[1724850363846,7.912,2527.8,2527.7,2.4279565]
[1724850364050,3.956,2527.8,2527.7,2.4279565]
[1724850364795,3.95587,2527.9,2527.7,2.4279565]
[1724850364942,3.95564,2528.1,2527.7,2.67075215]
[1724850365143,3.95573,2528.0,2527.7,2.4279565]
[1724850365367,3.95564,2528.1,2527.7,2.4279565]
[1724850365368,3.95586,2527.9,2527.7,2.4279565]
[1724850365974,3.95564,2528.1,2527.9,2.2607]
[1724850366296,3.95564,2528.1,2528.0,2.5978551]
[1724850366788,6.95532,2528.3,2528.0,2.5978551]
[1724850366949,6.95546,2528.2,2528.0,2.5978551]
[1724850367287,3.95553,2528.1,2528.0,2.5978551]
[1724850367847,3.95532,2528.3,2528.0,2.5978551]
[1724850368393,7.91064,2528.3,2528.0,2.5978551]
[1724850368988,3.95496,2528.5,2528.0,4.10917207]
[1724850369153,3.95496,2528.5,2528.1,2.4083]
[1724850369351,3.95496,2528.5,2528.3,2.4907]
[1724850369588,3.95496,2528.5,2528.4,0.17361735]
[1724850371673,3.95476,2528.6,2528.4,0.17361735]
[1724850372258,3.95491,2528.5,2528.4,0.17361735]
[1724850372592,3.95452,2528.8,2528.5,2.404]
[1724850372895,3.95475,2528.6,2528.5,2.404]
[1724850373060,3.95452,2528.8,2528.5,2.404]
[1724850373061,7.90911,2528.8,2528.5,2.404]
[1724850373255,3.95452,2528.8,2528.5,2.404]
[1724850373764,7.90781,2529.2,2528.6,6.35875]
[1724850373966,3.9539,2529.2,2528.7,2.404]
[1724850374276,7.90838,2529.0,2528.7,2.404]
[1724850374592,7.90834,2529.0,2528.7,2.404]
[1724850375106,3.9543,2528.9,2528.7,2.404]
[1724850375263,3.95413,2529.0,2528.7,2.404]
[1724850376046,3.95429,2528.9,2528.7,2.404]
[1724850376346,0.790842,2528.9,2528.2,2.2731]
[1724850376554,3.95491,2528.5,2527.9,2.2731]
[1724850376785,3.95563,2528.1,2527.9,2.2731]
[1724850377290,3.95569,2528.0,2527.9,2.2731]
[1724850378464,7.91138,2528.0,2527.9,2.2731]
[1724850378666,11.86707,2528.0,2527.9,2.2731]
[1724850378981,11.868,2527.8,2527.6,2.315]
[1724850379298,7.912,2527.8,2527.6,2.315]
[1724850381096,7.912,2527.8,2527.7,0.2737295]
[1724850381388,11.868,2527.8,2527.7,0.2737295]
[1724850381793,7.912,2527.8,2527.7,0.2737295]
[1724850384470,13.054776,2527.8,2527.7,0.2737295]
[1724850385159,20.010776,2527.8,2527.7,0.2737295]
[1724850385374,25.451076,2527.8,2527.7,9.5e-06]
[1724850385569,7.91388,2527.2,2527.1,0.004]
[1724850385782,7.91388,2527.2,2527.1,0.14980031]
[1724850387200,11.87082,2527.2,2527.1,0.14980031]
[1724850387408,7.91388,2527.2,2527.1,0.14980031]
[1724850387898,11.87082,2527.2,2527.1,0.14980031]
[1724850388110,13.057902,2527.2,2527.1,0.14980031]
[1724850388713,13.057902,2527.2,2527.1,0.13765312]
[1724850388714,20.014842,2527.2,2527.1,0.13765312]
[1724850388881,20.564842,2527.2,2527.1,0.13765281]
[1724850389239,7.91576,2526.6,2526.5,2.3873]
[1724850389572,7.91576,2526.6,2526.5,2.52515995]
[1724850390269,7.91576,2526.6,2526.5,0.13785995]
[1724850390619,3.9582,2526.4,2526.3,11.72420317]
[1724850390796,7.9164,2526.4,2526.3,11.72420317]
[1724850391315,3.9582,2526.4,2526.3,11.72420317]
[1724850391604,7.9164,2526.4,2526.3,11.72420317]
[1724850392870,7.9164,2526.4,2526.3,11.8581692]
[1724850393914,13.062048,2526.4,2526.3,0.13396603]
[1724850394236,7.91764,2526.0,2525.9,2.3148]
[1724850394426,3.95882,2526.0,2525.9,2.3148]
[1724850394586,3.95831,2526.4,2525.9,2.3559]
[1724850394920,3.95829,2526.4,2526.0,2.43506465]
[1724850395123,3.95829,2526.4,2526.0,2.3559]
[1724850395332,3.9583,2526.4,2526.1,11.72420317]
[1724850395485,3.9583,2526.4,2526.2,3.53623687]
[1724850396020,3.9583,2526.4,2526.3,0.13406398]
[1724850396588,7.91664,2526.4,2526.3,0.13406398]
[1724850398426,6.9583,2526.4,2525.8,14.03160317]
[1724850398636,3.95898,2525.9,2525.8,14.03160317]
[1724850398992,7.91796,2525.9,2525.8,2.3074]
[1724850399301,3.95883,2526.0,2525.8,2.3074]
[1724850399502,3.95914,2525.8,2525.7,2.3953]
[1724850400033,3.0,2526.4,2525.7,6.35459]
[1724850400194,3.95859,2526.2,2525.9,2.4138]
[1724850400391,3.95882,2526.0,2525.9,2.4138]
[1724850400854,7.91764,2526.0,2525.9,2.4138]
[1724850403035,3.95882,2526.0,2525.9,2.4138]
[1724850403264,3.95858,2526.2,2525.9,2.65518]
[1724850403416,3.95859,2526.2,2525.9,2.65518]
[1724850403618,3.95859,2526.2,2525.9,2.4138]
[1724850403619,3.95882,2526.0,2525.9,2.4138]
[1724850404322,7.91764,2526.0,2525.9,2.4138]
[1724850404842,3.95882,2526.0,2525.9,2.4138]
[1724850405361,7.91764,2526.0,2525.9,2.4138]
[1724850405563,3.95882,2526.0,2525.9,2.4138]
[1724850406121,7.91764,2526.0,2525.9,2.4138]
[1724850406633,3.95882,2526.0,2525.9,2.4138]
[1724850407133,3.95861,2526.2,2525.9,2.65518]
[1724850407336,7.91721,2526.2,2525.9,2.65518]
[1724850407529,3.9587,2526.1,2525.9,2.65518]
[1724850408155,3.95882,2526.0,2525.9,2.4138]
[1724850408774,7.91764,2526.0,2525.9,2.4138]
[1724850409331,3.95919,2525.8,2525.7,2.4363]
[1724850409537,8.710198,2525.8,2525.7,2.4363]
[1724850409734,7.91838,2525.8,2525.7,2.4363]
[1724850410242,3.95919,2525.8,2525.5,2.38]
[1724850410464,7.9189,2525.6,2525.5,2.38]
[1724850411079,7.9189,2525.6,2525.5,2.51543536]
[1724850411374,3.95945,2525.6,2525.5,2.51543536]
[1724850412650,7.9189,2525.6,2525.5,2.51543536]
[1724850414944,3.95929,2525.7,2525.5,2.51543536]
[1724850415145,7.9189,2525.6,2525.5,2.51543536]
[1724850415577,3.95945,2525.6,2525.5,2.51543536]
[1724850416249,7.9189,2525.6,2525.5,2.51543536]
[1724850416450,3.95945,2525.6,2525.5,2.51543536]
[1724850417465,7.9189,2525.6,2525.5,2.51543536]
[1724850417667,3.95945,2525.6,2525.5,2.51543536]
[1724850418278,7.9189,2525.6,2525.5,2.51543536]
[1724850418463,7.9189,2525.6,2525.5,0.13543536]
[1724850418776,7.91952,2525.4,2525.3,14.19760317]
[1724850418954,7.91984,2525.3,2525.2,0.1239565]
[1724850419368,11.87976,2525.3,2525.2,0.1239565]
[1724850419539,14.87976,2525.3,2525.2,0.1239565]
[1724850420077,3.95972,2525.5,2525.2,2.3781565]
[1724850420282,1.19700694,2526.2,2525.4,2.2542]
[1724850420283,3.95915,2525.8,2525.4,2.2542]
[1724850420579,3.9589,2526.0,2525.5,2.33338675]
[1724850420778,3.95836,2526.3,2525.7,2.2542]
[1724850420966,4.37220927,2526.1,2525.7,2.2542]
[1724850421137,3.95899,2525.9,2525.7,2.2542]
[1724850421363,3.95914,2525.8,2525.7,2.2542]
[1724850421753,7.91828,2525.8,2525.7,2.2542]
[1724850421968,7.91858,2525.7,2525.6,11.72420317]
[1724850422282,7.91858,2525.7,2525.2,0.1239565]
[1724850422283,3.95992,2525.3,2525.2,0.1239565]
[1724850422441,3.95972,2525.5,2525.2,2.5486565]
[1724850422839,3.95992,2525.3,2525.2,2.5486565]
[1724850423049,7.91984,2525.3,2525.2,0.1239565]
[1724850423653,16.36406,2525.3,2525.2,0.1239565]
[1724850423853,20.32398,2525.3,2525.2,0.1239565]
[1724850424178,18.649841,2525.3,2525.2,0.1239565]
[1724850424545,17.715541,2525.3,2525.2,0.1239565]
[1724850424947,17.165541,2525.3,2525.2,0.1239565]
[1724850425391,17.715541,2525.3,2525.2,0.1239565]
[1724850426156,21.675461,2525.3,2525.2,0.1239565]
[1724850426458,17.715541,2525.3,2525.2,0.1239565]
[1724850426657,18.649841,2525.3,2525.2,0.1239565]
[1724850426844,0.9343,2525.2,2524.8,5.49e-06]
[1724850427045,16.7765,2524.9,2524.8,5.49e-06]
[1724850427361,11.88165,2524.9,2524.8,5.49e-06]
[1724850427547,15.43165,2524.9,2524.8,5.49e-06]
[1724850428281,10.9211,2524.9,2524.8,5.49e-06]
[1724850428590,3.96055,2524.9,2524.8,5.49e-06]
[1724850428758,3.96055,2524.9,2524.8,0.13282809]
[1724850428940,7.9211,2524.9,2524.8,5.49e-06]
[1724850429143,3.96055,2524.9,2524.8,5.49e-06]
[1724850429486,3.95978,2525.4,2524.9,2.4857]
[1724850429487,3.95984,2525.4,2524.9,2.4857]
[1724850429786,3.96034,2525.1,2524.9,3.91997313]
[1724850430082,7.92068,2525.1,2525.0,0.13275355]
[1724850430781,7.92068,2525.1,2525.0,0.12942022]
[1724850430982,12.108743,2525.1,2525.0,0.12942022]
[1724850431186,10.92068,2525.1,2525.0,0.12942022]
[1724850431545,3.96034,2525.1,2525.0,0.12942022]
[1724850432250,3.95969,2525.5,2525.1,2.4275]
[1724850432448,3.95993,2525.3,2525.1,2.68319202]
[1724850432755,3.96008,2525.2,2525.1,2.4275]
[1724850432945,7.91997,2525.3,2525.1,2.4275]
[1724850433146,3.95949,2525.6,2525.1,2.67025]
[1724850433346,3.95949,2525.6,2525.3,2.3288]
[1724850433541,3.95937,2525.7,2525.3,2.3288]
[1724850433786,3.95961,2525.5,2525.3,4.1623146]
[1724850433988,3.95961,2525.5,2525.3,2.3288]
[1724850434813,7.91931,2525.5,2525.3,2.3288]
[1724850435120,3.95961,2525.5,2525.3,2.3288]
[1724850435426,3.9594,2525.7,2525.3,2.3288]
[1724850435585,7.91882,2525.7,2525.4,2.3343]
[1724850435919,3.9594,2525.7,2525.4,2.3343]
[1724850436125,0.41351927,2526.1,2524.9,2.4238]
[1724850436277,3.96008,2525.2,2524.9,2.4238]
[1724850436481,3.96003,2525.3,2524.9,2.4238]
[1724850436916,0.41357653,2526.0,2524.9,4.03975095]
[1724850436917,3.95939,2525.7,2524.9,4.03975095]
[1724850437233,4.53791766,2526.7,2524.9,4.03975095]
[1724850437234,3.95904,2525.9,2525.4,2.3312]
[1724850437435,3.95931,2525.7,2525.4,2.3312]
[1724850437595,3.95953,2525.6,2525.4,2.3312]
[1724850437781,3.95961,2525.5,2525.4,2.3312]
[1724850438139,3.95954,2525.6,2525.4,2.3312]
[1724850438309,3.95931,2525.7,2525.4,2.3312]
[1724850438491,3.95931,2525.7,2525.4,2.45601677]
[1724850438695,3.95931,2525.7,2525.4,2.70161845]
[1724850438883,7.91875,2525.7,2525.4,2.70161845]
[1724850439222,7.91871,2525.7,2525.4,2.70161845]
[1724850439429,3.95904,2525.9,2525.5,2.3710851]
[1724850439582,3.95922,2525.8,2525.5,2.64523546]
[1724850439785,5.30174613,2526.9,2525.5,2.64523546]
[1724850439786,3.95771,2526.8,2525.8,3.95903]
[1724850440109,3.95799,2526.6,2526.1,6.25055]
[1724850440317,3.9573,2527.0,2526.3,3.95822]
[1724850440512,3.9573,2527.0,2526.2,4.03766766]
[1724850440513,3.9573,2527.0,2526.5,2.2919]
[1724850440717,3.95703,2527.2,2526.6,0.07914702]
[1724850441028,3.95757,2526.8,2526.7,2.4299]
[1724850441248,7.91514,2526.8,2526.7,0.12436836]
[1724850441527,11.87271,2526.8,2526.7,0.12436836]
[1724850441739,7.91608,2526.5,2526.4,2.4299]
[1724850441972,1.187271,2526.8,2525.6,11.72420317]
[1724850441973,3.95874,2526.1,2525.7,2.4299]
[1724850442267,3.95842,2526.3,2525.7,2.4299]
[1724850442416,3.95852,2526.2,2525.7,2.4299]
[1724850442762,3.95869,2526.1,2525.8,2.4299]
[1724850442941,3.95842,2526.3,2525.8,2.4299]
[1724850443256,3.95861,2526.2,2525.8,2.4299]
[1724850443679,3.95842,2526.3,2525.9,0.0791688]
[1724850443963,3.95807,2526.5,2526.0,2.3006]
[1724850444268,3.0,2526.9,2526.0,2.3006]
[1724850444269,3.95856,2526.2,2526.0,2.3006]
[1724850444617,3.95829,2526.4,2526.0,2.3006]
[1724850444829,3.95836,2526.3,2526.0,2.3006]
[1724850445881,3.95867,2526.1,2526.0,2.3006]
[1724850446027,3.95867,2526.1,2526.0,14.02480317]
[1724850446547,3.95851,2526.2,2526.0,14.02480317]
[1724850446972,3.95855,2526.2,2526.0,14.02480317]
[1724850447669,3.95829,2526.4,2526.0,14.02480317]
[1724850447830,3.95854,2526.2,2526.0,14.02480317]
[1724850448026,3.95867,2526.1,2526.0,14.02480317]
[1724850448280,7.91734,2526.1,2526.0,2.3006]
[1724850449285,7.91796,2525.9,2525.8,11.72420317]
[1724850449775,3.95898,2525.9,2525.8,11.72420317]
[1724850449974,3.95876,2526.1,2525.8,11.72420317]
[1724850450127,3.95855,2526.2,2525.9,2.40047477]
[1724850450575,3.95843,2526.3,2525.9,2.40047006]
[1724850450775,3.95868,2526.1,2525.9,2.3213]
[1724850451274,3.95882,2526.0,2525.9,2.3213]
[1724850451453,7.91764,2526.0,2525.9,2.3213]
[1724850451646,8.709404,2526.0,2525.9,2.3213]
[1724850452834,4.750584,2526.0,2525.9,2.3213]
[1724850453033,3.95882,2526.0,2525.9,2.3213]
[1724850453941,7.91764,2526.0,2525.9,2.3213]
[1724850454561,7.91796,2525.9,2525.8,11.72420317]
[1724850455075,7.91828,2525.8,2525.7,11.72420317]
[1724850456067,7.91828,2525.8,2525.7,11.84305116]
[1724850458361,3.95914,2525.8,2525.7,11.84305116]
[1724850459036,7.91828,2525.8,2525.7,11.84305116]
[1724850459583,8.75145286,2525.8,2525.7,11.84305116]
[1724850459879,3.95914,2525.8,2525.7,11.84305116]
[1724850460754,0.41344855,2525.9,2525.7,11.84305116]
[1724850460998,0.41344855,2525.9,2525.8,11.72420317]
[1724850461301,0.41344855,2525.9,2525.8,14.24368562]
[1724850461452,0.41344855,2525.9,2525.8,16.06397218]
[1724850461674,3.95845,2526.3,2525.9,2.4001]
[1724850461989,3.95845,2526.3,2526.0,0.11931346]
[1724850462187,3.95831,2526.4,2526.0,0.11931346]
[1724850462188,3.95852,2526.2,2526.0,0.11931346]
[1724850462689,3.95867,2526.1,2526.0,0.11931346]
[1724850462849,3.95852,2526.2,2526.0,0.11931346]
[1724850463260,3.95867,2526.1,2526.0,0.11931346]
[1724850463495,3.95849,2526.3,2526.0,0.11931346]
[1724850463899,3.95831,2526.4,2526.0,0.11931346]
[1724850464050,7.91661,2526.4,2526.1,2.4011]
[1724850464426,3.95839,2526.3,2526.2,0.11900442]
[1724850465449,7.91678,2526.3,2526.2,0.11900442]
[1724850465661,8.708458,2526.3,2526.2,0.11900442]
[1724850465863,12.666848,2526.3,2526.2,0.11900442]
[1724850466077,12.666848,2526.3,2525.8,14.12530317]
[1724850466078,3.95898,2525.9,2525.8,14.12530317]
[1724850466285,7.91796,2525.9,2525.8,14.12530317]
[1724850466488,9.105641,2525.9,2525.8,14.12530317]
[1724850466914,9.105641,2525.9,2525.8,2.4011]
[1724850467259,3.95945,2525.6,2525.5,14.12530317]
[1724850467671,3.95931,2525.7,2525.5,14.12530317]
[1724850467872,3.95945,2525.6,2525.5,14.12530317]
[1724850468185,3.95931,2525.7,2525.5,14.12530317]
[1724850468371,7.91872,2525.7,2525.5,14.12530317]
[1724850468905,3.95945,2525.6,2525.5,14.12530317]
[1724850469090,7.91874,2525.7,2525.5,14.12530317]
[1724850469398,3.95931,2525.7,2525.5,14.12530317]
[1724850469896,7.9189,2525.6,2525.5,14.12530317]
[1724850471183,7.9189,2525.6,2525.5,0.11972604]
[1724850471586,7.9189,2525.6,2525.2,2.4073]
[1724850471587,3.95992,2525.3,2525.2,2.4073]
[1724850471791,7.91984,2525.3,2525.2,14.13150317]
[1724850472025,12.671744,2525.3,2525.2,11.72420317]
[1724850473824,12.671744,2525.3,2524.9,2.2943]
[1724850473825,7.92078,2525.0,2524.9,2.2943]
[1724850474117,11.88165,2524.9,2524.8,5.49e-06]
[1724850474329,8.713178,2524.9,2524.8,5.49e-06]
[1724850474498,7.9211,2524.9,2524.8,5.49e-06]
[1724850474688,3.9604,2525.0,2524.8,2.37350549]
[1724850475082,7.9211,2524.9,2524.8,2.37350549]
[1724850477929,3.96055,2524.9,2524.8,2.37350549]
[1724850478158,3.41358112,2525.7,2524.8,2.37350549]
[1724850478159,3.96012,2525.2,2524.8,2.37350549]
[1724850478464,3.95986,2525.4,2525.0,2.2674]
[1724850478629,3.95994,2525.3,2525.0,2.34659535]
[1724850478828,3.96009,2525.2,2525.0,2.2674]
[1724850479314,7.91971,2525.4,2525.0,2.2674]
[1724850479517,3.95984,2525.4,2525.0,2.2674]
[1724850479719,3.96012,2525.2,2525.0,2.2674]
[1724850480120,3.95987,2525.4,2525.0,2.34659849]
[1724850480121,3.95986,2525.4,2525.0,2.34659849]
[1724850480322,3.96009,2525.2,2525.0,2.34659849]
[1724850481868,3.96009,2525.2,2525.1,11.72420317]
[1724850482222,3.95993,2525.3,2525.1,11.72420317]
[1724850482535,0.7355238,2525.6,2525.1,11.72420317]
[1724850482536,3.95957,2525.6,2525.1,11.72420317]
[1724850482734,3.95965,2525.5,2525.2,0.0791952]
[1724850483071,3.95965,2525.5,2525.3,2.3124]
[1724850483293,3.95899,2525.9,2525.5,2.3124]
[1724850483453,3.959,2525.9,2525.6,12.43851714]
[1724850483653,3.959,2525.9,2525.6,11.80338206]
[1724850484719,3.95875,2526.1,2525.7,13.99080317]
[1724850484925,3.95859,2526.2,2525.8,0.0791731]
[1724850485124,3.9583,2526.4,2525.9,2.2666]
[1724850485425,3.95844,2526.3,2526.0,0.07916759]
[1724850486019,3.95844,2526.3,2526.1,0.11644453]
[1724850486233,3.95844,2526.3,2526.1,11.8406477]
[1724850486871,3.9583,2526.4,2526.2,2.4981]
[1724850487019,3.95835,2526.3,2526.2,2.4981]
[1724850492798,3.9583,2526.4,2526.2,2.4981]
[1724850493003,3.95798,2526.6,2526.2,2.74791]
[1724850493297,3.95776,2526.7,2526.4,2.3817]
[1724850493506,7.91538,2526.8,2526.4,2.3817]
[1724850493653,3.95705,2527.2,2526.7,3.9577]
[1724850493855,3.95721,2527.1,2526.9,2.312]
[1724850494862,3.95718,2527.1,2526.9,2.312]
[1724850496972,3.95726,2527.0,2526.9,2.312]
[1724850498717,7.91452,2527.0,2526.9,2.312]
[1724850499311,7.91482,2526.9,2526.8,11.72420317]
[1724850499623,3.95763,2526.8,2526.6,11.72420317]
[1724850499777,3.95741,2526.9,2526.7,2.2835]
[1724850500585,3.95757,2526.8,2526.7,2.2835]
[1724850501215,3.95757,2526.8,2526.7,2.39706152]
[1724850503881,12.664208,2526.8,2526.7,0.11356152]
[1724850504224,11.87271,2526.8,2526.7,0.11356152]
[1724850504737,18.83028,2526.8,2526.7,0.11356152]
[1724850504883,14.87271,2526.8,2526.7,0.11356152]
[1724850505083,7.9167,2526.3,2526.2,2.4533]
[1724850505286,7.9167,2526.3,2526.2,2.56333465]
[1724850508326,11.87505,2526.3,2526.2,0.11003465]
[1724850508532,13.062555,2526.3,2526.2,0.11003465]
[1724850508846,7.91764,2526.0,2525.9,13.99170317]
[1724850509048,7.91764,2526.0,2525.9,2.2675]
[1724850510745,3.95882,2526.0,2525.9,2.2675]
[1724850512117,3.95851,2526.3,2525.9,2.50216804]
[1724850512319,3.95814,2526.5,2526.1,2.3117]
[1724850512553,3.95829,2526.4,2526.3,2.3117]
[1724850512841,3.95793,2526.6,2526.3,2.3117]
[1724850513048,3.95804,2526.5,2526.3,2.3117]
[1724850513958,3.95807,2526.5,2526.3,2.5507859]
[1724850514311,3.9582,2526.4,2526.3,2.5507859]
[1724850514524,3.9582,2526.4,2526.3,2.3117]
[1724850514525,7.9164,2526.4,2526.3,2.3117]
[1724850515950,7.9164,2526.4,2526.3,2.42255698]
[1724850517694,3.9582,2526.4,2526.3,2.42255698]
[1724850517997,3.9582,2526.4,2526.3,2.66481268]
[1724850518653,3.9582,2526.4,2526.3,2.42255698]
[1724850521774,7.9164,2526.4,2526.3,2.42255698]
[1724850523114,3.95808,2526.5,2526.3,2.42255698]
[1724850523819,7.9157,2526.7,2526.3,2.42255698]
[1724850524118,3.9579,2526.6,2526.3,2.42255698]
[1724850524420,3.95782,2526.7,2526.3,2.42255698]
[1724850524421,3.95805,2526.5,2526.3,2.42255698]
[1724850526840,7.9162,2526.5,2526.3,2.42255698]
[1724850527220,3.95805,2526.5,2526.3,2.42255698]
[1724850527832,7.91621,2526.5,2526.3,2.42255698]
[1724850528031,3.9582,2526.4,2526.3,2.42255698]
[1724850529011,3.95766,2526.8,2526.3,2.42255698]
[1724850529213,3.95766,2526.8,2526.5,2.4669]
[1724850529614,3.95766,2526.8,2526.6,0.11049576]
[1724850530341,3.95766,2526.8,2526.7,2.3239]
[1724850530544,3.95737,2527.0,2526.7,2.43436128]
[1724850530745,3.95737,2527.0,2526.8,11.80334787]
[1724850530945,3.95737,2527.0,2526.9,2.3247]